fUSD/lending_fUSD_20240804
["ID","MTS","AMOUNT","RATE_DAILY","PERIOD"]
[334147352,1722795045465,-500.0,0.00023013,9]
[334147354,1722795045475,-629.93,0.00023013,9]
[334147356,1722795045485,-500.0,0.00023013,9]
[334147358,1722795045494,-500.0,0.00023013,9]
[334147360,1722795045504,-500.0,0.00023013,9]
[334147362,1722795045513,-500.0,0.00023013,9]
[334147364,1722795045528,-500.0,0.00023013,9]
[334147366,1722795045537,-500.0,0.00023013,9]
[334147368,1722795045546,-500.0,0.00023013,9]
[334147370,1722795045556,-552.11,0.00023013,9]
[334147372,1722795045565,-558.37,0.00023013,9]
[334147374,1722795045575,-500.0,0.00023013,9]
[334147376,1722795045584,-500.0,0.00023013,9]
[334147377,1722795045594,-500.0,0.00023013,9]
[334147380,1722795045604,-500.0,0.00023013,9]
[334147382,1722795045614,-370.54172105,0.00023013,9]
[334147384,1722795045623,-500.0,0.00023013,9]
[334147385,1722795045633,-500.0,0.00023013,9]
[334147387,1722795045642,-500.0,0.00023013,9]
[334147390,1722795045652,-500.0,0.00023013,9]
[334147393,1722795045661,-517.09,0.00023013,9]
[334147395,1722795045671,-296.78429562,0.00023013,9]
[334147398,1722795045681,-500.0,0.00023013,9]
[334147401,1722795045691,-500.0,0.00023013,9]
[334147404,1722795045700,-500.0,0.00023013,9]
[334147406,1722795045710,-500.0,0.00023013,9]
[334147408,1722795045720,-500.0,0.00023013,9]
[334147410,1722795045730,-500.0,0.00023013,9]
[334147412,1722795045739,-501.47,0.00023013,9]
[334147414,1722795045749,-500.0,0.00023013,9]
[334147416,1722795045758,-500.0,0.00023013,9]
[334147419,1722795045768,-591.09,0.00023013,9]
[334147422,1722795045785,-500.0,0.00023013,9]
[334147425,1722795045796,-500.0,0.00023013,9]
[334147428,1722795045805,-500.0,0.00023013,9]
[334147431,1722795045815,-500.0,0.00023013,9]
[334147434,1722795045825,-500.0,0.00023013,9]
[334147436,1722795045834,-500.0,0.00023013,9]
[334147439,1722795045844,-500.0,0.00023013,2]
[334147441,1722795045853,-500.0,0.00023013,9]
[334147443,1722795045863,-500.0,0.00023013,9]
[334147445,1722795045872,-500.0,0.00023013,9]
[334147447,1722795045881,-726.59,0.00023013,9]
[334147449,1722795045890,-506.07,0.00023013,9]
[334147451,1722795045900,-500.0,0.00023013,9]
[334147453,1722795045910,-500.0,0.00023013,9]
[334147454,1722795045919,-500.0,0.00023013,9]
[334147456,1722795045928,-500.0,0.00023013,9]
[334147458,1722795045938,-500.0,0.00023013,9]
[334147460,1722795045948,-790.02,0.00023013,9]
[334147462,1722795045957,-500.0,0.00023013,9]
[334147464,1722795045966,-500.0,0.00023013,9]
[334147466,1722795045975,-763.06,0.00023013,9]
[334147467,1722795045984,-500.0,0.00023013,9]
[334147469,1722795045994,-500.0,0.00023013,9]
[334147471,1722795046003,-500.0,0.00023013,9]
[334147473,1722795046012,-500.0,0.00023013,9]
[334147475,1722795046026,-500.0,0.00023013,9]
[334147477,1722795046036,-544.73,0.00023013,9]
[334147480,1722795046045,-500.0,0.00023013,9]
[334147482,1722795046055,-500.0,0.00023013,9]
[334147483,1722795046063,-3925.2,0.00023013,9]
[334147485,1722795046072,-500.0,0.00023013,9]
[334147487,1722795046081,-500.0,0.00023013,9]
[334147489,1722795046091,-500.0,0.00023013,9]
[334147491,1722795046102,-500.0,0.00023013,9]
[334147493,1722795046113,-500.0,0.00023013,9]
[334147495,1722795046122,-500.0,0.00023013,9]
[334147497,1722795046131,-500.0,0.00023013,9]
[334147499,1722795046142,-526.77,0.00023013,9]
[334147500,1722795046151,-500.0,0.00023013,9]
[334147502,1722795046160,-557.84,0.00023013,9]
[334147504,1722795046169,-500.0,0.00023013,9]
[334147506,1722795046179,-500.0,0.00023013,9]
[334147508,1722795046189,-500.0,0.00023013,9]
[334147510,1722795046199,-500.0,0.00023013,9]
[334147512,1722795046208,-500.0,0.00023013,9]
[334147514,1722795046217,-500.0,0.00023013,9]
[334147516,1722795046226,-159.57017944,0.00023013,9]
[334147518,1722795046236,-500.0,0.00023013,9]
[334147520,1722795046244,-500.0,0.00023013,9]
[334147521,1722795046254,-500.0,0.00023013,9]
[334147523,1722795046263,-902.95,0.00023013,9]
[334147525,1722795046278,-500.0,0.00023013,9]
[334147527,1722795046287,-500.0,0.00023013,9]
[334147528,1722795046296,-500.0,0.00023013,9]
[334147530,1722795046305,-533.44,0.00023013,9]
[334147532,1722795046315,-543.0,0.00023013,9]
[334147534,1722795046324,-780.85,0.00023013,9]
[334147536,1722795046334,-500.0,0.00023013,9]
[334147538,1722795046343,-667.2,0.00023013,9]
[334147540,1722795046353,-500.0,0.00023013,9]
[334147542,1722795046362,-902.5,0.00023013,9]
[334147544,1722795046371,-530.75,0.00023013,9]
[334147546,1722795046380,-500.0,0.00023013,9]
[334147548,1722795046389,-500.0,0.00023013,9]
[334147549,1722795046399,-500.0,0.00023013,9]
[334147551,1722795046408,-500.0,0.00023013,9]
[334147553,1722795046418,-500.0,0.00023013,9]
[334147555,1722795046427,-500.0,0.00023013,9]
[334147557,1722795046436,-500.0,0.00023013,9]
[334147559,1722795046446,-500.0,0.00023013,9]
[334147561,1722795046455,-500.0,0.00023013,9]
[334147563,1722795046465,-500.0,0.00023013,9]
[334147565,1722795046476,-500.0,0.00023013,9]
[334147567,1722795046486,-847.39,0.00023013,9]
[334147569,1722795046495,-500.0,0.00023013,9]
[334147570,1722795046505,-500.0,0.00023013,9]
[334147573,1722795046515,-500.0,0.00023013,9]
[334147575,1722795046535,-500.0,0.00023013,9]
[334147577,1722795046545,-876.5,0.00023013,9]
[334147579,1722795046555,-500.0,0.00023013,9]
[334147581,1722795046565,-500.0,0.00023013,9]
[334147583,1722795046575,-634.65,0.00023013,9]
[334147585,1722795046585,-500.0,0.00023013,9]
[334147587,1722795046595,-500.0,0.00023013,9]
[334147589,1722795046605,-1580.02,0.00023013,9]
[334147591,1722795046615,-500.0,0.00023013,9]
[334147593,1722795046625,-500.0,0.00023013,9]
[334147595,1722795046635,-776.27,0.00023013,9]
[334147597,1722795046645,-500.0,0.00023013,9]
[334147598,1722795046655,-500.0,0.00023013,9]
[334147599,1722795046665,-555.63,0.00023013,9]
[334147600,1722795046675,-593.18,0.00023013,9]
[334147601,1722795046685,-500.0,0.00023013,9]
[334147602,1722795046694,-630.37,0.00023013,9]
[334147603,1722795046705,-2363.88,0.00023013,9]
[334147604,1722795046715,-500.0,0.00023013,9]
[334147605,1722795046725,-254.34225354,0.00023013,9]
[334147606,1722795046735,-500.0,0.00023013,9]
[334147607,1722795046745,-630.18,0.00023013,9]
[334147609,1722795046755,-500.0,0.00023013,9]
[334147611,1722795046765,-1069.77,0.00023013,9]
[334147613,1722795046783,-1264.5,0.00023013,9]
[334147614,1722795046793,-768.11,0.00023013,9]
[334147617,1722795046803,-500.0,0.00023013,9]
[334147619,1722795046813,-500.0,0.00023013,9]
[334147620,1722795046823,-500.0,0.00023013,9]
[334147622,1722795046833,-500.0,0.00023013,9]
[334147624,1722795046843,-500.0,0.00023013,9]
[334147626,1722795046853,-500.0,0.00023013,9]
[334147628,1722795046863,-257.98899847,0.00023013,9]
[334147630,1722795046873,-500.0,0.00023013,9]
[334147632,1722795046883,-488.00045715,0.00023013,9]
[334147634,1722795046893,-1668.35,0.00023013,9]
[334147636,1722795046903,-7951.93,0.00023013,9]
[334147638,1722795046913,-890.87,0.00023013,9]
[334147640,1722795046922,-500.0,0.00023013,9]
[334147642,1722795046932,-481.65,0.00023013,9]
[334147644,1722795046942,-500.0,0.00023013,9]
[334147646,1722795046952,-1075.95,0.00023013,9]
[334147648,1722795046962,-604.37,0.00023013,9]
[334147650,1722795046972,-781.89,0.00023013,9]
[334147652,1722795046982,-561.55,0.00023013,9]
[334147654,1722795046993,-648.91,0.00023013,9]
[334147656,1722795047003,-500.0,0.00023013,9]
[334147658,1722795047014,-210.71,0.00023013,9]
[334147660,1722795047031,-611.51,0.00023013,9]
[334147662,1722795047041,-3284.69,0.00023013,9]
[334147664,1722795047051,-500.0,0.00023013,9]
[334147666,1722795047061,-500.0,0.00023013,9]
[334147668,1722795047071,-500.0,0.00023013,9]
[334147670,1722795047082,-500.0,0.00023013,9]
[334147673,1722795047093,-672.45,0.00023013,9]
[334147675,1722795047107,-500.0,0.00023013,9]
[334147676,1722795047117,-952.93650593,0.00023013,9]
[334147713,1722795047467,-424.56451937,0.00023013,9]
[334147730,1722795047630,-859.2089747,0.00023013,9]
[334147732,1722795047644,-90.7360453,0.00023013,9]
[334147734,1722795047656,-596.1039547,0.00023013,9]
[334147736,1722795047667,-500.0,0.00023013,9]
[334147739,1722795047677,-500.0,0.00023013,9]
[334147741,1722795047687,-4875.35,0.00023013,9]
[334147743,1722795047696,-500.0,0.00023013,9]
[334147745,1722795047707,-500.0,0.00023013,9]
[334147747,1722795047716,-715.23,0.00023013,9]
[334147749,1722795047725,-571.27,0.00023013,9]
[334147751,1722795047735,-6313.0684328,0.00023013,9]
[334147753,1722795047747,-4365.6815672,0.00023013,9]
[334147755,1722795047757,-500.0,0.00023013,9]
[334147757,1722795047766,-500.0,0.00023013,9]
[334147759,1722795047780,-994.95593368,0.00023013,9]
[334147762,1722795047804,-1153.71406632,0.00023013,9]
[334147764,1722795047814,-691.0,0.00023013,9]
[334147766,1722795047823,-713.9,0.00023013,9]
[334147768,1722795047834,-500.0,0.00023013,9]
[334147770,1722795047843,-500.0,0.00023013,9]
[334147772,1722795047853,-1494.48493368,0.00023013,9]
[334147845,1722795048581,-1122.59869064,0.00023013,9]
[334147848,1722795048602,-1489.26637568,0.00023013,9]
[334147850,1722795048612,-693.84,0.00023013,9]
[334147852,1722795048622,-1225.07,0.00023013,9]
[334147854,1722795048632,-500.0,0.00023013,9]
[334147856,1722795048642,-500.0,0.00023013,9]
[334147858,1722795048651,-1313.26,0.00023013,9]
[334147860,1722795048661,-500.0,0.00023013,9]
[334147862,1722795048670,-500.0,0.00023013,9]
[334147864,1722795048680,-500.0,0.00023013,9]
[334147866,1722795048690,-500.0,0.00023013,9]
[334147868,1722795048700,-500.0,0.00023013,9]
[334147870,1722795048710,-500.0,0.00023013,9]
[334147872,1722795048719,-500.0,0.00023013,9]
[334147874,1722795048729,-500.0,0.00023013,9]
[334147876,1722795048740,-881.63,0.00023013,9]
[334147878,1722795048750,-500.0,0.00023013,9]
[334147880,1722795048760,-331.0561761,0.00023013,9]
[334147882,1722795048771,-228.99057228,0.00023013,9]
[334147884,1722795048787,-177.91732186,0.00023013,9]
[334147886,1722795048797,-322.08267814,0.00023013,9]
[334147888,1722795048810,-177.91732186,0.00023013,9]
[334147890,1722795048820,-667.54,0.00023013,9]
[334147892,1722795048831,-500.0,0.00023013,9]
[334147895,1722795048842,-42.16044917,0.00023013,9]
[334147897,1722795048854,-457.83955083,0.00023013,9]
[334147899,1722795048864,-53.52072385,0.00023013,9]
[334147901,1722795048876,-446.47927615,0.00023013,9]
[334147903,1722795048887,-500.0,0.00023013,9]
[334147905,1722795048897,-1312.19948507,0.00023013,9]
[334147909,1722795048922,-892.59768437,0.00023013,9]
[334147911,1722795048934,-529.18283056,0.00023013,9]
[334147913,1722795048945,-500.0,0.00023013,9]
[334147915,1722795048955,-804.79,0.00023013,9]
[334147917,1722795048965,-192.80221107,0.00023013,9]
[334147920,1722795048978,-307.19778893,0.00023013,9]
[334147921,1722795048988,-500.0,0.00023013,9]
[334147923,1722795048997,-275.42212712,0.00023013,9]
[334147926,1722795049010,-466.52787288,0.00023013,9]
[334147928,1722795049020,-274.2116621,0.00023013,9]
[334147931,1722795049041,-396.35,0.00022203,2]
[334147933,1722795049051,-79.46398569,0.00023013,9]
[334147935,1722795049063,-188.92435221,0.00023013,9]
[334147937,1722795049073,-419.56736413,0.00023013,9]
[334147939,1722795049083,-232.07144611,0.00023013,9]
[334147941,1722795049093,-303.69443517,0.00023013,9]
[334147943,1722795049108,-196.30556483,0.00023013,9]
[334147946,1722795049118,-1576.19,0.00023013,9]
[334147948,1722795049128,-208.33288518,0.00023013,9]
[334147951,1722795049150,-291.66711482,0.00023013,9]
[334147953,1722795049160,-500.0,0.00023013,9]
[334147955,1722795049170,-1585.08,0.00023013,9]
[334147957,1722795049183,-1778.58,0.00023013,9]
[334147959,1722795049192,-326.14237791,0.00023013,9]
[334147961,1722795049205,-200.86762209,0.00023013,9]
[334147963,1722795049214,-347.45929824,0.00023013,9]
[334147965,1722795049224,-500.0,0.00023013,9]
[334147967,1722795049234,-961.56,0.00023013,9]
[334147969,1722795049244,-123.78849003,0.00023013,9]
[334147971,1722795049257,-376.21150997,0.00023013,9]
[334147973,1722795049267,-333.7129711,0.00023013,9]
[334147975,1722795049284,-166.2870289,0.00023013,9]
[334147977,1722795049300,-1103.23280914,0.00023013,9]
[334147979,1722795049313,-307.89258711,0.00023013,9]
[334147982,1722795049332,-363.00924602,0.00023013,9]
[334147984,1722795049344,-2163.79535773,0.00023013,9]
[334147986,1722795049354,-500.0,0.00023013,9]
[334147988,1722795049364,-913.3,0.00023013,9]
[334147990,1722795049375,-500.0,0.00023013,9]
[334147992,1722795049385,-1071.76,0.00023013,9]
[334147994,1722795049394,-500.0,0.00023013,9]
[334147996,1722795049404,-2860.02,0.00023013,9]
[334147998,1722795049414,-1193.01,0.00023013,9]
[334148000,1722795049424,-704.44,0.00023013,9]
[334148002,1722795049434,-425.69329425,0.00023013,9]
[334148003,1722795049444,-820.83,0.00023013,9]
[334148004,1722795049455,-500.0,0.00023013,9]
[334148005,1722795049465,-500.0,0.00023013,9]
[334148006,1722795049475,-709.92,0.00023013,9]
[334148007,1722795049485,-856.28,0.00023013,9]
[334148008,1722795049495,-500.0,0.00023013,9]
[334148009,1722795049504,-564.32,0.00023013,9]
[334148010,1722795049514,-1613.26,0.00023013,9]
[334148011,1722795049527,-500.0,0.00023013,9]
[334148013,1722795049537,-500.0,0.00023013,9]
[334148015,1722795049546,-500.0,0.00023013,9]
[334148017,1722795049557,-500.0,0.00023013,9]
[334148019,1722795049567,-500.0,0.00023013,9]
[334148021,1722795049578,-914.94,0.00023013,9]
[334148023,1722795049587,-1055.26,0.00023013,9]
[334148025,1722795049597,-671.81,0.00023013,9]
[334148027,1722795049607,-928.74,0.00023013,9]
[334148029,1722795049618,-968.94,0.00023013,9]
[334148031,1722795049629,-500.0,0.00023013,9]
[334148033,1722795049639,-583.63888026,0.00023013,9]
[334148035,1722795049650,-500.0,0.00023013,9]
[334148037,1722795049662,-500.0,0.00023013,9]
[334148039,1722795049672,-500.0,0.00023013,9]
[334148041,1722795049683,-1354.06,0.00023013,9]
[334148043,1722795049693,-3229.87,0.00023013,9]
[334148045,1722795049702,-500.0,0.00023013,9]
[334148047,1722795049712,-500.0,0.00023013,9]
[334148049,1722795049722,-1624.15,0.00023013,9]
[334148051,1722795049733,-320.04002174,0.00023013,9]
[334148053,1722795049743,-1229.62,0.00023013,9]
[334148055,1722795049754,-500.0,0.00023013,9]
[334148057,1722795049764,-652.66,0.00023013,9]
[334148059,1722795049778,-2531.1,0.00023013,9]
[334148061,1722795049788,-500.0,0.00023013,9]
[334148063,1722795049798,-500.0,0.00023013,9]
[334148065,1722795049808,-500.0,0.00023013,9]
[334148067,1722795049819,-460.02347,0.00023013,9]
[334148069,1722795049829,-500.0,0.00023013,9]
[334148071,1722795049840,-612.62,0.00023013,9]
[334148073,1722795049850,-500.0,0.00023013,9]
[334148075,1722795049860,-883.55,0.00023013,9]
[334148077,1722795049870,-805.65,0.00023013,9]
[334148079,1722795049880,-500.0,0.00023013,9]
[334148081,1722795049890,-3140.56,0.00023013,9]
[334148083,1722795049900,-500.0,0.00023013,9]
[334148085,1722795049910,-545.33,0.00023013,9]
[334148087,1722795049920,-6294.05,0.00023013,9]
[334148089,1722795049930,-2231.27,0.00023013,9]
[334148091,1722795049940,-500.0,0.00023013,9]
[334148093,1722795049950,-643.83,0.00023013,9]
[334148095,1722795049960,-500.0,0.00023013,9]
[334148097,1722795049970,-500.0,0.00023013,9]
[334148099,1722795049980,-500.0,0.00023013,9]
[334148101,1722795049990,-500.0,0.00023013,9]
[334148103,1722795050000,-500.0,0.00023013,9]
[334148105,1722795050011,-1210.52,0.00023013,9]
[334148107,1722795050022,-500.0,0.00023013,9]
[334148109,1722795050035,-500.0,0.00023013,9]
[334148111,1722795050046,-500.0,0.00023013,9]
[334148113,1722795050057,-500.0,0.00023013,9]
[334148146,1722795050397,-500.0,0.00023013,9]
[334148147,1722795050407,-910.11,0.00023013,9]
[334148150,1722795050417,-785.51,0.00023013,9]
[334148152,1722795050426,-368.25,0.00023013,9]
[334148154,1722795050436,-500.0,0.00023013,9]
[334148156,1722795050445,-1360.59,0.00023013,9]
[334148158,1722795050455,-589.56,0.00023013,9]
[334148160,1722795050465,-1061.84,0.00023013,9]
[334148162,1722795050475,-500.0,0.00023013,9]
[334148164,1722795050485,-500.0,0.00023013,9]
[334148166,1722795050496,-500.0,0.00023013,9]
[334148168,1722795050506,-1159.22,0.00023013,9]
[334148170,1722795050516,-500.0,0.00023013,9]
[334148172,1722795050527,-500.0,0.00023013,9]
[334148173,1722795050536,-675.6,0.00023013,9]
[334148174,1722795050546,-500.0,0.00023013,9]
[334148175,1722795050556,-500.0,0.00023013,9]
[334148176,1722795050566,-1153.2,0.00023013,9]
[334148177,1722795050575,-1581.17,0.00023013,9]
[334148178,1722795050585,-1865.12,0.00023013,9]
[334148179,1722795050595,-595.45,0.00023013,9]
[334148180,1722795050604,-935.44,0.00023013,9]
[334148181,1722795050614,-531.13,0.00023013,9]
[334148182,1722795050624,-643.32,0.00023013,9]
[334148183,1722795050634,-600.36,0.00023013,9]
[334148184,1722795050643,-201.26059861,0.00023013,9]
[334148185,1722795050652,-500.0,0.00023013,9]
[334148186,1722795050662,-1667.72,0.00023013,9]
[334148187,1722795050671,-500.0,0.00023013,9]
[334148188,1722795050681,-978.99,0.00023013,9]
[334148189,1722795050690,-500.0,0.00023013,9]
[334148190,1722795050699,-500.0,0.00023013,9]
[334148191,1722795050710,-500.0,0.00023013,9]
[334148192,1722795050720,-983.26,0.00023013,9]
[334148193,1722795050730,-1980.65,0.00023013,9]
[334148194,1722795050740,-500.0,0.00023013,9]
[334148195,1722795050750,-500.0,0.00023013,9]
[334148196,1722795050759,-500.0,0.00023013,9]
[334148197,1722795050769,-680.51,0.00023013,9]
[334148198,1722795050781,-1081.09,0.00023013,9]
[334148199,1722795050791,-1101.49,0.00023013,9]
[334148200,1722795050802,-735.98,0.00023013,9]
[334148201,1722795050812,-500.0,0.00023013,9]
[334148202,1722795050821,-548.44,0.00023013,9]
[334148204,1722795050831,-1208.06,0.00023013,9]
[334148206,1722795050840,-500.0,0.00023013,9]
[334148208,1722795050851,-363.38517964,0.00023013,9]
[334148209,1722795050861,-500.0,0.00023013,9]
[334148210,1722795050872,-500.0,0.00023013,9]
[334148211,1722795050883,-680.65,0.00023013,9]
[334148212,1722795050894,-500.0,0.00023013,9]
[334148213,1722795050904,-500.0,0.00023013,9]
[334148214,1722795050914,-759.12,0.00023013,9]
[334148215,1722795050923,-500.0,0.00023013,9]
[334148216,1722795050933,-500.0,0.00023013,9]
[334148217,1722795050943,-2228.57,0.00023013,9]
[334148218,1722795050953,-500.0,0.00023013,9]
[334148219,1722795050963,-500.0,0.00023013,9]
[334148220,1722795050973,-1316.15,0.00023013,9]
[334148221,1722795050983,-500.0,0.00023013,9]
[334148222,1722795050993,-500.0,0.00023013,9]
[334148223,1722795051002,-500.0,0.00023013,9]
[334148224,1722795051012,-500.0,0.00023013,9]
[334148225,1722795051021,-575.89,0.00023013,9]
[334148226,1722795051032,-500.0,0.00023013,9]
[334148227,1722795051042,-1343.97,0.00023013,9]
[334148228,1722795051051,-742.3,0.00023013,9]
[334148229,1722795051061,-500.0,0.00023013,9]
[334148230,1722795051071,-500.0,0.00023013,9]
[334148231,1722795051080,-500.0,0.00023013,9]
[334148232,1722795051091,-2447.2,0.00023013,9]
[334148233,1722795051102,-500.0,0.00023013,9]
[334148234,1722795051115,-500.0,0.00023013,9]
[334148235,1722795051125,-3387.44,0.00023013,9]
[334148236,1722795051135,-500.0,0.00023013,9]
[334148237,1722795051146,-500.0,0.00023013,9]
[334148238,1722795051156,-1640.45,0.00023013,9]
[334148239,1722795051166,-500.0,0.00023013,9]
[334148240,1722795051175,-562.35,0.00023013,9]
[334148241,1722795051186,-500.0,0.00023013,9]
[334148242,1722795051196,-827.13,0.00023013,9]
[334148243,1722795051206,-369.5937573,0.00023013,9]
[334148244,1722795051243,396.35,0.00024978,120]
[334148245,1722795051267,-130.4062427,0.00023013,9]
[334148246,1722795051278,-500.0,0.00023013,9]
[334148247,1722795051287,-67.51673789,0.00023013,9]
[334148248,1722795051299,-432.48326211,0.00023013,9]
[334148249,1722795051308,-1038.15,0.00023013,9]
[334148250,1722795051318,-764.7,0.00023013,9]
[334148251,1722795051327,-500.0,0.00023013,9]
[334148252,1722795051336,-500.0,0.00023013,9]
[334148253,1722795051346,-721.95,0.00023013,9]
[334148254,1722795051355,-500.0,0.00023013,9]
[334148255,1722795051365,-500.0,0.00023013,9]
[334148256,1722795051375,-530.62,0.00023013,9]
[334148257,1722795051385,-48.64702247,0.00023013,9]
[334148258,1722795051399,-451.35297753,0.00023013,9]
[334148259,1722795051408,-924.71,0.00023013,9]
[334148260,1722795051418,-1104.09,0.00023013,9]
[334148261,1722795051427,-500.0,0.00023013,7]
[334148262,1722795051437,-260.53360245,0.00023013,9]
[334148263,1722795051447,-500.0,0.00023013,9]
[334148264,1722795051457,-500.0,0.00023013,9]
[334148265,1722795051466,-966.04,0.00023013,9]
[334148266,1722795051476,-1184.38,0.00023013,9]
[334148267,1722795051485,-500.0,0.00023013,9]
[334148268,1722795051495,-500.0,0.00023013,9]
[334148269,1722795051505,-683.7,0.00023013,9]
[334148270,1722795051514,-500.0,0.00023013,9]
[334148271,1722795051523,-500.0,0.00023013,9]
[334148272,1722795051539,-500.0,0.00023013,9]
[334148273,1722795051549,-685.18,0.00023013,9]
[334148274,1722795051558,-500.0,0.00023013,9]
[334148275,1722795051567,-500.0,0.00023013,9]
[334148276,1722795051577,-500.0,0.00023013,9]
[334148277,1722795051587,-2030.94,0.00023013,9]
[334148278,1722795051597,-500.0,0.00023013,9]
[334148279,1722795051607,-365.58,0.00023013,9]
[334148280,1722795051617,-831.19,0.00023013,9]
[334148281,1722795051626,-771.83,0.00023013,9]
[334148282,1722795051636,-500.0,0.00023013,9]
[334148283,1722795051645,-500.0,0.00023013,9]
[334148284,1722795051655,-1148.99,0.00023013,9]
[334148285,1722795051665,-837.66,0.00023013,9]
[334148286,1722795051675,-1640.19,0.00023013,9]
[334148287,1722795051684,-153.867246,0.00023013,9]
[334148288,1722795051694,-862.86,0.00023013,9]
[334148289,1722795051703,-500.0,0.00023013,9]
[334148290,1722795051713,-500.0,0.00023013,9]
[334148291,1722795051722,-500.0,0.00023013,9]
[334148292,1722795051731,-500.0,0.00023013,9]
[334148293,1722795051741,-3575.11535246,0.00023078,2]
[334148294,1722795051751,-616.87,0.00023094,9]
[334148295,1722795051761,-500.0,0.00023094,9]
[334148296,1722795051770,-500.0,0.00023094,9]
[334148297,1722795051783,-500.0,0.00023094,9]
[334148298,1722795051793,-1000.0,0.00023094,2]
[334148299,1722795051802,-135969.93115426,0.00023095,11]
[334148300,1722795051815,-394.23734066,0.00023095,11]
[334148301,1722795051826,-674.925,0.00023095,11]
[334148302,1722795051838,-1625.95161616,0.00023095,11]
[334148303,1722795051874,-13185.45050569,0.00023095,11]
[334148304,1722795051883,-500.0,0.00023095,9]
[334148305,1722795051893,-500.0,0.00023095,9]
[334148306,1722795051903,-295.87129958,0.00023095,9]
[334148307,1722795051911,-500.0,0.00023095,9]
[334148308,1722795051921,-500.0,0.00023095,9]
[334148309,1722795051930,-500.0,0.00023095,9]
[334148310,1722795051940,-500.0,0.00023095,9]
[334148311,1722795051949,-500.0,0.00023095,9]
[334148312,1722795051959,-500.0,0.00023095,9]
[334148313,1722795051969,-500.0,0.00023095,9]
[334148314,1722795051978,-500.0,0.00023095,9]
[334148315,1722795051987,-500.0,0.00023095,9]
[334148316,1722795051997,-553.53,0.00023095,9]
[334148317,1722795052006,-500.0,0.00023095,9]
[334148318,1722795052015,-500.0,0.00023095,9]
[334148319,1722795052025,-500.0,0.00023095,9]
[334148320,1722795052035,-500.0,0.00023095,9]
[334148321,1722795052045,-297.55,0.00023095,9]
[334148322,1722795052054,-500.0,0.00023095,9]
[334148323,1722795052064,-500.0,0.00023095,9]
[334148324,1722795052073,-500.0,0.00023095,9]
[334148325,1722795052082,-500.0,0.00023095,9]
[334148326,1722795052091,-500.0,0.00023095,9]
[334148327,1722795052103,-500.0,0.00023095,9]
[334148328,1722795052116,-500.0,0.00023095,9]
[334148329,1722795052125,-500.0,0.00023095,9]
[334148330,1722795052135,-500.0,0.00023095,9]
[334148331,1722795052146,-500.0,0.00023095,9]
[334148332,1722795052155,-197.59819673,0.00023095,9]
[334148333,1722795121420,-7578.17487905,0.00011105,2]
[334148334,1722795121501,-1388.50139268,0.00011105,2]
[334148335,1722795121543,-485.35658426,0.00011105,2]
[334148336,1722795121585,-378.37477901,0.00011105,2]
[334148337,1722795121658,-70.87813281,0.00011105,2]
[334148338,1722795121703,-227.61995131,0.00011105,2]